[Event "Titled Tuesday Blitz February 28 Late 2023"]
[White "Jimenez Almeida, Luis David"]
[Black "Aung Thant Zin"]
[WhiteFideId "22242244"]
[BlackFideId "13000063"]
[WhiteElo "2245"]
[BlackElo "2278"]
[Result "1-0"]
[Round "10"]
[TimeControl "180+2"]
[Date "2023.02.28"]
[WhiteClock "0:00:23"]
[BlackClock "0:00:45"]

1. e4 {[%clk 0:03:00]}  c5 {[%clk 0:02:59]} 2. Nc3 {[%clk 0:02:58]}  Nc6 {[%clk 0:03:00]} 3. g3 {[%clk 0:02:59]}  e6 {[%clk 0:02:59]} 4. Bg2 {[%clk 0:02:59]}  Nf6 {[%clk 0:02:58]} 5. f4 {[%clk 0:02:55]}  d5 {[%clk 0:02:55]} 6. d3 {[%clk 0:02:51]}  Be7 {[%clk 0:02:52]} 7. e5 {[%clk 0:02:48]}  Nd7 {[%clk 0:02:49]} 8. Nf3 {[%clk 0:02:48]}  O-O {[%clk 0:02:49]} 9. O-O {[%clk 0:02:47]}  a6 {[%clk 0:02:46]} 10. Ne2 {[%clk 0:02:42]}  d4 {[%clk 0:02:43]} 11. g4 {[%clk 0:02:40]}  Qc7 {[%clk 0:02:43]} 12. Ng3 {[%clk 0:02:40]}  b5 {[%clk 0:02:41]} 13. h4 {[%clk 0:02:36]}  Bb7 {[%clk 0:02:41]} 14. h5 {[%clk 0:02:34]}  f6 {[%clk 0:02:40]} 15. exf6 {[%clk 0:02:28]}  gxf6 {[%clk 0:02:36]} 16. Qe2 {[%clk 0:02:25]}  Nd8 {[%clk 0:02:32]} 17. a4 {[%clk 0:02:17]}  b4 {[%clk 0:02:23]} 18. Bd2 {[%clk 0:02:06]}  Bd5 {[%clk 0:02:20]} 19. b3 {[%clk 0:02:02]}  Qc6 {[%clk 0:02:19]} 20. Rae1 {[%clk 0:02:00]}  Nf7 {[%clk 0:02:19]} 21. Nh4 {[%clk 0:01:55]}  Rae8 {[%clk 0:02:14]} 22. Bxd5 {[%clk 0:01:50]}  exd5 {[%clk 0:02:14]} 23. Nhf5 {[%clk 0:01:40]}  Bd6 {[%clk 0:01:54]} 24. Qxe8 {[%clk 0:01:40]}  Rxe8 {[%clk 0:01:54]} 25. Rxe8+ {[%clk 0:01:40]}  Nf8 {[%clk 0:01:54]} 26. Rfe1 {[%clk 0:01:32]}  a5 {[%clk 0:01:35]} 27. Ne7+ {[%clk 0:01:22]}  Bxe7 {[%clk 0:01:32]} 28. R1xe7 {[%clk 0:01:23]}  Nd6 {[%clk 0:01:28]} 29. Rd8 {[%clk 0:01:09]}  Qb6 {[%clk 0:01:20]} 30. Ra8 {[%clk 0:00:55]}  c4 {[%clk 0:01:12]} 31. h6 {[%clk 0:00:41]}  Nf7 {[%clk 0:00:56]} 32. Nh5 {[%clk 0:00:35]}  cxb3 {[%clk 0:00:46]} 33. Ree8 {[%clk 0:00:27]}  Qd6 {[%clk 0:00:45]} 34. Nxf6+ {[%clk 0:00:23]} 1-0


[Site "https://www.chess.com"]

[Event "Titled Tuesday Blitz February 28 Late 2023"]
[White "Karamsetty, Jeevan"]
[Black "Rosen, Eric"]
[WhiteFideId "2025337"]
[BlackFideId "2032562"]
[WhiteElo "2111"]
[BlackElo "2359"]
[Result "1-0"]
[Round "10"]
[TimeControl "180+2"]
[Date "2023.02.28"]
[WhiteClock "0:00:04"]
[BlackClock "0:00:02"]

1. e4 {[%clk 0:03:00]}  e5 {[%clk 0:03:00]} 2. Nf3 {[%clk 0:03:00]}  Nf6 {[%clk 0:03:00]} 3. Nxe5 {[%clk 0:02:59]}  Nc6 {[%clk 0:03:00]} 4. Nxc6 {[%clk 0:02:56]}  dxc6 {[%clk 0:03:01]} 5. d3 {[%clk 0:02:56]}  Bc5 {[%clk 0:03:01]} 6. Be2 {[%clk 0:02:56]}  h5 {[%clk 0:03:00]} 7. c3 {[%clk 0:02:54]}  Ng4 {[%clk 0:02:59]} 8. d4 {[%clk 0:02:49]}  Qh4 {[%clk 0:02:59]} 9. Bxg4 {[%clk 0:02:45]}  Bxg4 {[%clk 0:02:58]} 10. Qb3 {[%clk 0:02:41]}  O-O-O {[%clk 0:02:54]} 11. Be3 {[%clk 0:02:37]}  Be6 {[%clk 0:02:31]} 12. Qa4 {[%clk 0:02:33]}  Bb6 {[%clk 0:02:30]} 13. Nd2 {[%clk 0:02:33]}  f5 {[%clk 0:02:25]} 14. g3 {[%clk 0:02:05]}  Qh3 {[%clk 0:02:07]} 15. O-O-O {[%clk 0:02:02]}  fxe4 {[%clk 0:02:04]} 16. Nxe4 {[%clk 0:02:02]}  Bd5 {[%clk 0:02:02]} 17. f3 {[%clk 0:01:57]}  Qg2 {[%clk 0:01:51]} 18. Ng5 {[%clk 0:01:38]}  Rhe8 {[%clk 0:01:39]} 19. Rhe1 {[%clk 0:01:13]}  Qxh2 {[%clk 0:01:36]} 20. Bf4 {[%clk 0:01:06]}  Rxe1 {[%clk 0:01:23]} 21. Rxe1 {[%clk 0:01:07]}  Qf2 {[%clk 0:01:24]} 22. Qd1 {[%clk 0:01:01]}  Bc4 {[%clk 0:01:02]} 23. Ne4 {[%clk 0:00:55]}  Qh2 {[%clk 0:00:58]} 24. Rh1 {[%clk 0:00:49]}  Qg2 {[%clk 0:00:57]} 25. Rg1 {[%clk 0:00:34]}  Qh3 {[%clk 0:00:57]} 26. Rh1 {[%clk 0:00:34]}  Qf5 {[%clk 0:00:56]} 27. b3 {[%clk 0:00:30]}  Bg8 {[%clk 0:00:53]} 28. Ng5 {[%clk 0:00:24]}  g6 {[%clk 0:00:46]} 29. Qc2 {[%clk 0:00:23]}  Qa5 {[%clk 0:00:41]} 30. Kb2 {[%clk 0:00:21]}  c5 {[%clk 0:00:39]} 31. dxc5 {[%clk 0:00:17]}  Bxc5 {[%clk 0:00:39]} 32. Ne4 {[%clk 0:00:17]}  Ba3+ {[%clk 0:00:36]} 33. Kb1 {[%clk 0:00:18]}  Be6 {[%clk 0:00:34]} 34. Re1 {[%clk 0:00:14]}  Bf5 {[%clk 0:00:34]} 35. Bc1 {[%clk 0:00:14]}  Be7 {[%clk 0:00:32]} 36. Bb2 {[%clk 0:00:14]}  Qd5 {[%clk 0:00:27]} 37. Qe2 {[%clk 0:00:13]}  Bd6 {[%clk 0:00:24]} 38. Qf2 {[%clk 0:00:09]}  b6 {[%clk 0:00:18]} 39. Ka1 {[%clk 0:00:07]}  Bf8 {[%clk 0:00:12]} 40. c4 {[%clk 0:00:06]}  Qd3 {[%clk 0:00:11]} 41. Nf6 {[%clk 0:00:05]}  Bb4 {[%clk 0:00:11]} 42. Rc1 {[%clk 0:00:05]}  Bd2 {[%clk 0:00:10]} 43. Rd1 {[%clk 0:00:04]}  Qc2 {[%clk 0:00:07]} 44. Qg1 {[%clk 0:00:04]}  Rd3 {[%clk 0:00:02]} 45. Ne4 {[%clk 0:00:04]} 1-0


[Site "https://www.chess.com"]

[Event "Titled Tuesday Blitz February 28 Late 2023"]
[White "Bilan, Danila"]
[Black "Poliakova, Varvara"]
[WhiteFideId "24161918"]
[BlackFideId "13518313"]
[WhiteElo "2182"]
[BlackElo "2075"]
[Result "1/2-1/2"]
[Round "10"]
[TimeControl "180+2"]
[Date "2023.02.28"]
[WhiteClock "0:00:03"]
[BlackClock "0:00:19"]

1. d4 {[%clk 0:03:00]}  e5 {[%clk 0:02:57]} 2. dxe5 {[%clk 0:02:56]}  d6 {[%clk 0:02:58]} 3. Nf3 {[%clk 0:02:56]}  Nc6 {[%clk 0:02:56]} 4. e4 {[%clk 0:02:51]}  Bg4 {[%clk 0:02:54]} 5. exd6 {[%clk 0:02:48]}  Bxd6 {[%clk 0:02:54]} 6. Be2 {[%clk 0:02:47]}  Nf6 {[%clk 0:02:52]} 7. Nc3 {[%clk 0:02:36]}  Qe7 {[%clk 0:02:45]} 8. Bg5 {[%clk 0:02:31]}  O-O-O {[%clk 0:02:42]} 9. Qc1 {[%clk 0:02:09]}  h6 {[%clk 0:02:35]} 10. Bxf6 {[%clk 0:01:53]}  gxf6 {[%clk 0:02:36]} 11. h3 {[%clk 0:01:46]}  Bxf3 {[%clk 0:02:34]} 12. Bxf3 {[%clk 0:01:45]}  Nd4 {[%clk 0:02:33]} 13. Nd5 {[%clk 0:01:25]}  Qe5 {[%clk 0:02:29]} 14. c3 {[%clk 0:01:22]}  Nxf3+ {[%clk 0:02:28]} 15. gxf3 {[%clk 0:01:22]}  c6 {[%clk 0:02:24]} 16. Ne3 {[%clk 0:01:17]}  Qh5 {[%clk 0:02:25]} 17. Ke2 {[%clk 0:00:53]}  Qb5+ {[%clk 0:02:19]} 18. Ke1 {[%clk 0:00:44]}  Bf4 {[%clk 0:02:16]} 19. Qc2 {[%clk 0:00:38]}  Rd3 {[%clk 0:02:07]} 20. c4 {[%clk 0:00:28]}  Qb4+ {[%clk 0:02:04]} 21. Ke2 {[%clk 0:00:29]}  Rhd8 {[%clk 0:02:03]} 22. Rhd1 {[%clk 0:00:22]}  Rxd1 {[%clk 0:02:00]} 23. Rxd1 {[%clk 0:00:21]}  Rxd1 {[%clk 0:01:59]} 24. Kxd1 {[%clk 0:00:21]}  Qd6+ {[%clk 0:01:53]} 25. Ke2 {[%clk 0:00:20]}  Qe6 {[%clk 0:01:52]} 26. Nf5 {[%clk 0:00:19]}  Kc7 {[%clk 0:01:45]} 27. Qd3 {[%clk 0:00:19]}  Qe5 {[%clk 0:01:45]} 28. Qd4 {[%clk 0:00:18]}  Qa5 {[%clk 0:01:39]} 29. Qxf6 {[%clk 0:00:16]}  Qd2+ {[%clk 0:01:04]} 30. Kf1 {[%clk 0:00:16]}  Qd3+ {[%clk 0:01:01]} 31. Kg2 {[%clk 0:00:15]}  Qxc4 {[%clk 0:01:01]} 32. b3 {[%clk 0:00:12]}  Qe6 {[%clk 0:00:59]} 33. Qd4 {[%clk 0:00:06]}  a6 {[%clk 0:00:57]} 34. Kf1 {[%clk 0:00:05]}  h5 {[%clk 0:00:53]} 35. Ke2 {[%clk 0:00:04]}  Be5 {[%clk 0:00:51]} 36. Qc4 {[%clk 0:00:04]}  Qxc4+ {[%clk 0:00:48]} 37. bxc4 {[%clk 0:00:05]}  b5 {[%clk 0:00:47]} 38. cxb5 {[%clk 0:00:05]}  cxb5 {[%clk 0:00:48]} 39. Ke3 {[%clk 0:00:06]}  Kd7 {[%clk 0:00:46]} 40. f4 {[%clk 0:00:06]}  Bc7 {[%clk 0:00:44]} 41. Ng3 {[%clk 0:00:07]}  h4 {[%clk 0:00:39]} 42. Nf5 {[%clk 0:00:07]}  Bb6+ {[%clk 0:00:37]} 43. Kf3 {[%clk 0:00:06]}  a5 {[%clk 0:00:36]} 44. Nxh4 {[%clk 0:00:06]}  b4 {[%clk 0:00:35]} 45. Ke2 {[%clk 0:00:04]}  a4 {[%clk 0:00:34]} 46. Kd3 {[%clk 0:00:04]}  Bxf2 {[%clk 0:00:32]} 47. Nf5 {[%clk 0:00:03]}  b3 {[%clk 0:00:29]} 48. axb3 {[%clk 0:00:04]}  axb3 {[%clk 0:00:27]} 49. Kc3 {[%clk 0:00:04]}  Be1+ {[%clk 0:00:25]} 50. Kxb3 {[%clk 0:00:04]}  Bd2 {[%clk 0:00:23]} 51. Kc4 {[%clk 0:00:03]}  Bxf4 {[%clk 0:00:23]} 52. Kd5 {[%clk 0:00:04]}  Ke8 {[%clk 0:00:21]} 53. Nd6+ {[%clk 0:00:04]}  Ke7 {[%clk 0:00:19]} 54. Nf5+ {[%clk 0:00:04]}  Kf6 {[%clk 0:00:19]} 55. Nd6 {[%clk 0:00:04]}  Kg6 {[%clk 0:00:19]} 56. e5 {[%clk 0:00:04]}  Bg3 {[%clk 0:00:18]} 57. Nxf7 {[%clk 0:00:01]}  Kxf7 {[%clk 0:00:19]} 58. e6+ {[%clk 0:00:02]}  Ke7 {[%clk 0:00:19]} 59. h4 {[%clk 0:00:03]}  Bxh4 {[%clk 0:00:19]} 60. Ke4 {[%clk 0:00:02]}  Bf6 {[%clk 0:00:19]} 61. Kf3 {[%clk 0:00:03]}  Kxe6 {[%clk 0:00:19]} 1/2-1/2


[Site "https://www.chess.com"]

[Event "Titled Tuesday Blitz February 28 Late 2023"]
[White "Sielecki, Christof"]
[Black "reevecanada"]
[WhiteFideId "4620437"]
[WhiteElo "2443"]
[BlackElo "2478"]
[Result "0-1"]
[Round "10"]
[TimeControl "180+2"]
[Date "2023.02.28"]
[WhiteClock "0:00:24"]
[BlackClock "0:00:59"]

1. e4 {[%clk 0:03:00]}  c5 {[%clk 0:02:59]} 2. Nf3 {[%clk 0:03:01]}  d6 {[%clk 0:02:58]} 3. Bb5+ {[%clk 0:03:00]}  Bd7 {[%clk 0:02:57]} 4. Bxd7+ {[%clk 0:03:00]}  Qxd7 {[%clk 0:02:58]} 5. c4 {[%clk 0:03:00]}  e5 {[%clk 0:02:57]} 6. Nc3 {[%clk 0:03:00]}  Nf6 {[%clk 0:02:57]} 7. d3 {[%clk 0:02:59]}  g6 {[%clk 0:02:57]} 8. Bg5 {[%clk 0:02:58]}  Bg7 {[%clk 0:02:56]} 9. Bxf6 {[%clk 0:02:59]}  Bxf6 {[%clk 0:02:55]} 10. Nd5 {[%clk 0:02:58]}  Bg7 {[%clk 0:02:56]} 11. O-O {[%clk 0:02:58]}  O-O {[%clk 0:02:56]} 12. Rb1 {[%clk 0:02:55]}  Nc6 {[%clk 0:02:54]} 13. a3 {[%clk 0:02:55]}  Ne7 {[%clk 0:02:52]} 14. Nxe7+ {[%clk 0:02:53]}  Qxe7 {[%clk 0:02:52]} 15. b4 {[%clk 0:02:50]}  b6 {[%clk 0:02:51]} 16. Nd2 {[%clk 0:02:34]}  f5 {[%clk 0:02:49]} 17. Re1 {[%clk 0:02:24]}  f4 {[%clk 0:02:48]} 18. f3 {[%clk 0:02:16]}  g5 {[%clk 0:02:46]} 19. Rb2 {[%clk 0:02:14]}  h5 {[%clk 0:02:41]} 20. h3 {[%clk 0:02:14]}  Rf6 {[%clk 0:02:30]} 21. Nb1 {[%clk 0:02:12]}  Rg6 {[%clk 0:02:29]} 22. Nc3 {[%clk 0:02:11]}  g4 {[%clk 0:02:29]} 23. fxg4 {[%clk 0:02:11]}  hxg4 {[%clk 0:02:28]} 24. hxg4 {[%clk 0:02:11]}  Qh4 {[%clk 0:02:26]} 25. Rf1 {[%clk 0:02:04]}  Rxg4 {[%clk 0:02:25]} 26. Rf3 {[%clk 0:01:59]}  Kf7 {[%clk 0:02:23]} 27. Qa4 {[%clk 0:01:15]}  Ke6 {[%clk 0:01:48]} 28. Qc6 {[%clk 0:00:51]}  Rh8 {[%clk 0:01:26]} 29. Qd5+ {[%clk 0:00:49]}  Ke7 {[%clk 0:01:04]} 30. Qb7+ {[%clk 0:00:48]}  Kf6 {[%clk 0:01:04]} 31. Nd5+ {[%clk 0:00:48]}  Kg6 {[%clk 0:01:03]} 32. Ne7+ {[%clk 0:00:47]}  Kg5 {[%clk 0:01:03]} 33. Kf1 {[%clk 0:00:23]}  Qh1+ {[%clk 0:01:00]} 34. Ke2 {[%clk 0:00:24]}  Rxg2+ {[%clk 0:00:59]} 35. Rf2 {[%clk 0:00:24]}  Rxf2+ {[%clk 0:00:59]} 0-1


[Site "https://www.chess.com"]

[Event "Titled Tuesday Blitz February 28 Late 2023"]
[White "Mortazavi, Ali"]
[Black "Gascon Del Nogal, Jose Rafael"]
[WhiteFideId "401323"]
[BlackFideId "3902463"]
[WhiteElo "2339"]
[BlackElo "2473"]
[Result "1-0"]
[Round "10"]
[TimeControl "180+2"]
[Date "2023.02.28"]
[WhiteClock "0:00:18"]
[BlackClock "0:00:02"]

1. e4 {[%clk 0:03:00]}  c5 {[%clk 0:02:57]} 2. Nc3 {[%clk 0:03:00]}  Nc6 {[%clk 0:02:57]} 3. f4 {[%clk 0:02:59]}  e6 {[%clk 0:02:56]} 4. Nf3 {[%clk 0:02:59]}  d5 {[%clk 0:02:56]} 5. Bb5 {[%clk 0:02:58]}  Ne7 {[%clk 0:02:56]} 6. exd5 {[%clk 0:02:56]}  exd5 {[%clk 0:02:57]} 7. Qe2 {[%clk 0:02:56]}  f6 {[%clk 0:02:57]} 8. d4 {[%clk 0:02:44]}  Kf7 {[%clk 0:02:51]} 9. dxc5 {[%clk 0:02:36]}  Nf5 {[%clk 0:02:51]} 10. Nxd5 {[%clk 0:02:31]}  Ncd4 {[%clk 0:02:23]} 11. Nxd4 {[%clk 0:02:26]}  Nxd4 {[%clk 0:02:24]} 12. Qc4 {[%clk 0:02:16]}  Nxb5 {[%clk 0:01:56]} 13. Nc7+ {[%clk 0:02:04]}  Kg6 {[%clk 0:01:55]} 14. Nxb5 {[%clk 0:01:44]}  Bf5 {[%clk 0:01:45]} 15. g4 {[%clk 0:01:27]}  Qe7+ {[%clk 0:01:18]} 16. Kf1 {[%clk 0:01:25]}  Bxg4 {[%clk 0:01:04]} 17. f5+ {[%clk 0:01:25]}  Kh5 {[%clk 0:00:57]} 18. h3 {[%clk 0:01:05]}  Bf3 {[%clk 0:00:57]} 19. Bg5 {[%clk 0:00:36]}  fxg5 {[%clk 0:00:39]} 20. Re1 {[%clk 0:00:36]}  Qxc5 {[%clk 0:00:34]} 21. Qf7+ {[%clk 0:00:34]}  Kh4 {[%clk 0:00:22]} 22. Rg1 {[%clk 0:00:20]}  Qxb5+ {[%clk 0:00:20]} 23. c4 {[%clk 0:00:20]}  Qxb2 {[%clk 0:00:07]} 24. Re4+ {[%clk 0:00:18]}  Bxe4 {[%clk 0:00:06]} 25. Rg4+ {[%clk 0:00:17]}  Kxh3 {[%clk 0:00:02]} 26. Qh5# {[%clk 0:00:18]} 1-0


[Site "https://www.chess.com"]

[Event "Titled Tuesday Blitz February 28 Late 2023"]
[White "Yurovskykh, Oleksandr"]
[Black "Mazurkiewicz, Michal"]
[WhiteFideId "14134020"]
[BlackFideId "1124943"]
[WhiteElo "2268"]
[BlackElo "2054"]
[Result "1-0"]
[Round "10"]
[TimeControl "180+2"]
[Date "2023.02.28"]
[WhiteClock "0:00:43"]
[BlackClock "0:00:05"]

1. d4 {[%clk 0:02:58]}  Nf6 {[%clk 0:02:59]} 2. Nf3 {[%clk 0:02:58]}  g6 {[%clk 0:02:59]} 3. Bg5 {[%clk 0:02:56]}  Bg7 {[%clk 0:03:00]} 4. Nbd2 {[%clk 0:02:57]}  d5 {[%clk 0:03:00]} 5. e3 {[%clk 0:02:57]}  O-O {[%clk 0:03:00]} 6. Be2 {[%clk 0:02:57]}  c6 {[%clk 0:03:00]} 7. O-O {[%clk 0:02:57]}  h6 {[%clk 0:02:59]} 8. Bh4 {[%clk 0:02:57]}  Bf5 {[%clk 0:02:59]} 9. c4 {[%clk 0:02:57]}  Nbd7 {[%clk 0:02:52]} 10. Rc1 {[%clk 0:02:52]}  Qb6 {[%clk 0:02:44]} 11. Qb3 {[%clk 0:02:52]}  Rfe8 {[%clk 0:02:41]} 12. h3 {[%clk 0:02:48]}  Ne4 {[%clk 0:02:20]} 13. Nxe4 {[%clk 0:02:46]}  Qxb3 {[%clk 0:02:20]} 14. axb3 {[%clk 0:02:45]}  Bxe4 {[%clk 0:02:12]} 15. Nd2 {[%clk 0:02:44]}  e5 {[%clk 0:01:28]} 16. Nxe4 {[%clk 0:02:42]}  dxe4 {[%clk 0:01:28]} 17. d5 {[%clk 0:02:40]}  Nc5 {[%clk 0:01:21]} 18. b4 {[%clk 0:02:31]}  Nd3 {[%clk 0:01:22]} 19. Bxd3 {[%clk 0:02:32]}  exd3 {[%clk 0:01:22]} 20. e4 {[%clk 0:02:32]}  cxd5 {[%clk 0:01:02]} 21. cxd5 {[%clk 0:02:29]}  g5 {[%clk 0:00:52]} 22. Bg3 {[%clk 0:02:28]}  Bf8 {[%clk 0:00:42]} 23. Rfd1 {[%clk 0:02:25]}  f6 {[%clk 0:00:09]} 24. b5 {[%clk 0:02:19]}  Rac8 {[%clk 0:00:08]} 25. Rxc8 {[%clk 0:02:15]}  Rxc8 {[%clk 0:00:09]} 26. Rxd3 {[%clk 0:02:16]}  Bd6 {[%clk 0:00:09]} 27. Rc3 {[%clk 0:02:10]}  Rc5 {[%clk 0:00:06]} 28. Rxc5 {[%clk 0:02:08]}  Bxc5 {[%clk 0:00:07]} 29. Kf1 {[%clk 0:02:08]}  Kf8 {[%clk 0:00:07]} 30. f3 {[%clk 0:02:08]}  Ke7 {[%clk 0:00:07]} 31. Be1 {[%clk 0:01:38]}  Kd6 {[%clk 0:00:07]} 32. Ke2 {[%clk 0:01:38]}  Kc7 {[%clk 0:00:05]} 33. Kd3 {[%clk 0:01:38]}  Kb6 {[%clk 0:00:05]} 34. Kc4 {[%clk 0:01:38]}  Bd6 {[%clk 0:00:02]} 35. Bf2+ {[%clk 0:01:36]}  Kc7 {[%clk 0:00:02]} 36. Bc5 {[%clk 0:00:54]}  b6 {[%clk 0:00:03]} 37. Bxd6+ {[%clk 0:00:50]}  Kxd6 {[%clk 0:00:04]} 38. b4 {[%clk 0:00:50]}  h5 {[%clk 0:00:04]} 39. h4 {[%clk 0:00:48]}  gxh4 {[%clk 0:00:03]} 40. Kd3 {[%clk 0:00:45]}  Kc7 {[%clk 0:00:04]} 41. Ke2 {[%clk 0:00:44]}  Kb7 {[%clk 0:00:02]} 42. Kf2 {[%clk 0:00:44]}  a5 {[%clk 0:00:02]} 43. bxa6+ {[%clk 0:00:44]}  Kxa6 {[%clk 0:00:03]} 44. Kg1 {[%clk 0:00:43]}  Kb7 {[%clk 0:00:03]} 45. Kh2 {[%clk 0:00:43]}  Kc7 {[%clk 0:00:03]} 46. Kh3 {[%clk 0:00:44]}  Kd6 {[%clk 0:00:04]} 47. Kxh4 {[%clk 0:00:44]}  f5 {[%clk 0:00:05]} 48. Kxh5 {[%clk 0:00:44]}  f4 {[%clk 0:00:05]} 49. Kg4 {[%clk 0:00:43]} 1-0


[Site "https://www.chess.com"]

[Event "Titled Tuesday Blitz February 28 Late 2023"]
[White "Papayan, Oleg"]
[Black "Paszewski, Mateusz"]
[WhiteFideId "4193911"]
[BlackFideId "1141058"]
[WhiteElo "2153"]
[BlackElo "2223"]
[Result "0-1"]
[Round "10"]
[TimeControl "180+2"]
[Date "2023.02.28"]
[WhiteClock "0:00:04"]
[BlackClock "0:00:16"]

1. e4 {[%clk 0:02:59]}  c5 {[%clk 0:03:00]} 2. Nf3 {[%clk 0:02:59]}  d6 {[%clk 0:03:00]} 3. d4 {[%clk 0:02:59]}  cxd4 {[%clk 0:03:01]} 4. Qxd4 {[%clk 0:03:00]}  Nf6 {[%clk 0:03:02]} 5. Bg5 {[%clk 0:02:59]}  Bd7 {[%clk 0:02:50]} 6. c4 {[%clk 0:02:53]}  Nc6 {[%clk 0:02:49]} 7. Qe3 {[%clk 0:02:47]}  e6 {[%clk 0:02:49]} 8. Be2 {[%clk 0:02:38]}  Be7 {[%clk 0:02:49]} 9. O-O {[%clk 0:02:38]}  O-O {[%clk 0:02:49]} 10. Nc3 {[%clk 0:02:33]}  Rc8 {[%clk 0:02:48]} 11. Rfd1 {[%clk 0:02:31]}  a6 {[%clk 0:02:48]} 12. Bxf6 {[%clk 0:02:27]}  gxf6 {[%clk 0:02:38]} 13. Nd4 {[%clk 0:01:21]}  Kh8 {[%clk 0:02:35]} 14. Rac1 {[%clk 0:01:11]}  Rg8 {[%clk 0:02:33]} 15. b3 {[%clk 0:01:04]}  Qa5 {[%clk 0:02:24]} 16. Nxc6 {[%clk 0:00:50]}  Bxc6 {[%clk 0:02:20]} 17. Bf3 {[%clk 0:00:47]}  Qe5 {[%clk 0:02:14]} 18. Qd4 {[%clk 0:00:45]}  Qf4 {[%clk 0:02:09]} 19. Kh1 {[%clk 0:00:33]}  Rg6 {[%clk 0:02:08]} 20. Ne2 {[%clk 0:00:32]}  Qh4 {[%clk 0:02:04]} 21. Ng3 {[%clk 0:00:28]}  Rcg8 {[%clk 0:01:57]} 22. Kg1 {[%clk 0:00:26]}  Rh6 {[%clk 0:01:49]} 23. h3 {[%clk 0:00:26]}  Rhg6 {[%clk 0:01:49]} 24. Kf1 {[%clk 0:00:25]}  Qf4 {[%clk 0:01:31]} 25. Rc3 {[%clk 0:00:23]}  Qe5 {[%clk 0:00:56]} 26. Qxe5 {[%clk 0:00:22]}  fxe5 {[%clk 0:00:57]} 27. Ne2 {[%clk 0:00:11]}  Rf8 {[%clk 0:00:54]} 28. Ng3 {[%clk 0:00:07]}  f5 {[%clk 0:00:51]} 29. exf5 {[%clk 0:00:06]}  exf5 {[%clk 0:00:52]} 30. Bxc6 {[%clk 0:00:06]}  bxc6 {[%clk 0:00:53]} 31. Ne2 {[%clk 0:00:03]}  Rc8 {[%clk 0:00:40]} 32. f4 {[%clk 0:00:02]}  e4 {[%clk 0:00:40]} 33. g3 {[%clk 0:00:02]}  Kg8 {[%clk 0:00:35]} 34. Kf2 {[%clk 0:00:02]}  Kf7 {[%clk 0:00:35]} 35. Rc2 {[%clk 0:00:02]}  Bd8 {[%clk 0:00:30]} 36. Nd4 {[%clk 0:00:02]}  Bb6 {[%clk 0:00:31]} 37. Kg2 {[%clk 0:00:01]}  Bxd4 {[%clk 0:00:29]} 38. Rxd4 {[%clk 0:00:01]}  Rcg8 {[%clk 0:00:30]} 39. Rc3 {[%clk 0:00:02]}  Ke6 {[%clk 0:00:27]} 40. Kf2 {[%clk 0:00:02]}  h5 {[%clk 0:00:27]} 41. h4 {[%clk 0:00:02]}  a5 {[%clk 0:00:26]} 42. c5 {[%clk 0:00:02]}  d5 {[%clk 0:00:26]} 43. Ra4 {[%clk 0:00:03]}  Ra8 {[%clk 0:00:25]} 44. b4 {[%clk 0:00:03]}  Rg7 {[%clk 0:00:24]} 45. bxa5 {[%clk 0:00:03]}  Rb7 {[%clk 0:00:24]} 46. Rb3 {[%clk 0:00:04]}  Rb5 {[%clk 0:00:21]} 47. Rxb5 {[%clk 0:00:02]}  cxb5 {[%clk 0:00:22]} 48. Ra3 {[%clk 0:00:02]}  Kd7 {[%clk 0:00:22]} 49. Ke3 {[%clk 0:00:01]}  Kc6 {[%clk 0:00:21]} 50. Kd4 {[%clk 0:00:02]}  b4 {[%clk 0:00:20]} 51. Rb3 {[%clk 0:00:02]}  Rxa5 {[%clk 0:00:20]} 52. Rxb4 {[%clk 0:00:02]}  Rxa2 {[%clk 0:00:19]} 53. Rb6+ {[%clk 0:00:03]}  Kc7 {[%clk 0:00:20]} 54. Kxd5 {[%clk 0:00:03]}  e3 {[%clk 0:00:19]} 55. Re6 {[%clk 0:00:04]}  e2 {[%clk 0:00:19]} 56. Re5 {[%clk 0:00:03]}  Rd2+ {[%clk 0:00:17]} 57. Ke6 {[%clk 0:00:03]}  Kc6 {[%clk 0:00:16]} 58. Kxf5 {[%clk 0:00:04]}  Rd5 {[%clk 0:00:16]} 0-1


[Site "https://www.chess.com"]

[Event "Titled Tuesday Blitz February 28 Late 2023"]
[White "Florescu, Codrut-Constantin"]
[Black "Dudzinski, Pawel"]
[WhiteFideId "1202200"]
[BlackFideId "1117890"]
[WhiteElo "2191"]
[BlackElo "2099"]
[Result "1-0"]
[Round "10"]
[TimeControl "180+2"]
[Date "2023.02.28"]
[WhiteClock "0:00:11"]
[BlackClock "0:00:05"]

1. e4 {[%clk 0:03:00]}  c6 {[%clk 0:02:59]} 2. Nf3 {[%clk 0:03:00]}  d5 {[%clk 0:03:00]} 3. Nc3 {[%clk 0:03:00]}  dxe4 {[%clk 0:02:52]} 4. Nxe4 {[%clk 0:02:57]}  Nf6 {[%clk 0:02:53]} 5. Ng3 {[%clk 0:02:58]}  h5 {[%clk 0:02:52]} 6. h4 {[%clk 0:02:56]}  Bg4 {[%clk 0:02:50]} 7. Be2 {[%clk 0:02:55]}  c5 {[%clk 0:02:44]} 8. d3 {[%clk 0:02:55]}  Nc6 {[%clk 0:02:43]} 9. Bg5 {[%clk 0:02:52]}  e6 {[%clk 0:02:42]} 10. Ne4 {[%clk 0:02:48]}  Be7 {[%clk 0:02:38]} 11. Bxf6 {[%clk 0:02:41]}  Bxf6 {[%clk 0:02:38]} 12. Nxf6+ {[%clk 0:02:41]}  Qxf6 {[%clk 0:02:37]} 13. c3 {[%clk 0:02:41]}  O-O-O {[%clk 0:02:32]} 14. Qc2 {[%clk 0:02:41]}  Ne5 {[%clk 0:02:21]} 15. Nxe5 {[%clk 0:02:31]}  Qxe5 {[%clk 0:02:22]} 16. Kf1 {[%clk 0:02:32]}  Rd7 {[%clk 0:02:08]} 17. Re1 {[%clk 0:02:30]}  Bxe2+ {[%clk 0:02:06]} 18. Rxe2 {[%clk 0:02:28]}  Qd5 {[%clk 0:02:06]} 19. Rh3 {[%clk 0:02:18]}  Qxa2 {[%clk 0:02:04]} 20. Re5 {[%clk 0:02:04]}  Rd5 {[%clk 0:01:55]} 21. Rxd5 {[%clk 0:01:48]}  Qxd5 {[%clk 0:01:56]} 22. Qa4 {[%clk 0:01:45]}  a6 {[%clk 0:01:42]} 23. Rf3 {[%clk 0:01:44]}  f6 {[%clk 0:01:32]} 24. Rg3 {[%clk 0:01:43]}  Rd8 {[%clk 0:01:30]} 25. Kg1 {[%clk 0:01:34]}  Rd7 {[%clk 0:01:30]} 26. Qa5 {[%clk 0:01:25]}  Kb8 {[%clk 0:01:04]} 27. Qb6 {[%clk 0:01:23]}  Rd6 {[%clk 0:00:54]} 28. Qa5 {[%clk 0:01:23]}  Ka7 {[%clk 0:00:53]} 29. Rxg7 {[%clk 0:01:16]}  Rb6 {[%clk 0:00:48]} 30. Qa3 {[%clk 0:01:03]}  Qxd3 {[%clk 0:00:44]} 31. Qxc5 {[%clk 0:01:03]}  Qb1+ {[%clk 0:00:39]} 32. Kh2 {[%clk 0:01:03]}  Qxb2 {[%clk 0:00:40]} 33. Rh7 {[%clk 0:00:40]}  Qb5 {[%clk 0:00:28]} 34. Rxh5 {[%clk 0:00:39]}  Qe2 {[%clk 0:00:09]} 35. f3 {[%clk 0:00:27]}  f5 {[%clk 0:00:08]} 36. Rh6 {[%clk 0:00:24]}  Qe1 {[%clk 0:00:07]} 37. Rh8 {[%clk 0:00:18]}  Qb1 {[%clk 0:00:02]} 38. Qc7 {[%clk 0:00:17]}  a5 {[%clk 0:00:02]} 39. Qb8+ {[%clk 0:00:14]}  Ka6 {[%clk 0:00:01]} 40. Rd8 {[%clk 0:00:14]}  Kb5 {[%clk 0:00:01]} 41. Rd4 {[%clk 0:00:13]}  Kc5 {[%clk 0:00:01]} 42. Qe5+ {[%clk 0:00:11]}  Kc6 {[%clk 0:00:01]} 43. Qxe6+ {[%clk 0:00:11]}  Kc7 {[%clk 0:00:02]} 44. Qe5+ {[%clk 0:00:11]}  Kc6 {[%clk 0:00:01]} 45. Rd6+ {[%clk 0:00:10]}  Kc7 {[%clk 0:00:02]} 46. Qe7+ {[%clk 0:00:11]}  Kb8 {[%clk 0:00:03]} 47. Rd8+ {[%clk 0:00:11]}  Ka7 {[%clk 0:00:04]} 48. Qe8 {[%clk 0:00:12]}  Ka6 {[%clk 0:00:05]} 49. Ra8# {[%clk 0:00:11]} 1-0


[Site "https://www.chess.com"]